bitfinex/quotes_SOLUSD_20250822
["timestamp","ask_amount","ask_price","bid_price","bid_amount"]
[1755860616697,4.9148952,181.52,181.51,0.03]
[1755860617099,4.9148952,181.52,181.51,0.71]
[1755860617610,4.9148952,181.52,181.51,0.03]
[1755860617806,8.59959551,181.52,181.51,0.03]
[1755860619500,4.9148952,181.52,181.51,0.03]
[1755860619700,8.59959551,181.52,181.51,0.03]
[1755860620210,9.26959551,181.52,181.51,0.03]
[1755860620408,5.5848952,181.52,181.51,0.03]
[1755860620609,4.9148952,181.52,181.51,0.03]
[1755860624909,5.5848952,181.52,181.51,0.03]
[1755860625434,4.9148952,181.52,181.51,0.03]
[1755860627223,5.6148952,181.52,181.51,0.03]
[1755860629452,4.9148952,181.52,181.51,0.03]
[1755860633517,6.65397431,181.53,181.51,0.03]
[1755860633738,4.9148952,181.52,181.51,0.03]
[1755860634835,0.7,181.52,181.51,0.03]
[1755860635028,4.9148952,181.52,181.51,0.03]
[1755860637125,5.6148952,181.52,181.51,0.03]
[1755860638523,4.9148952,181.52,181.51,0.03]
[1755860639237,6.65397431,181.53,181.51,0.03]
[1755860639424,4.9148952,181.52,181.51,0.03]
[1755860639935,5.95397431,181.53,181.51,0.03]
[1755860640142,4.9148952,181.52,181.51,0.03]
[1755860640644,5.6148952,181.52,181.51,0.03]
[1755860641341,9.29959551,181.52,181.51,0.03]
[1755860642530,13.40641123,181.52,181.51,0.03]
[1755860642729,15.61580623,181.52,181.51,0.03]
[1755860643418,21.12493956,181.52,181.51,0.03]
[1755860644631,21.26710113,181.52,181.51,0.03]
[1755860646536,21.26421845,181.52,181.51,0.03]
[1755860647118,21.2633249,181.52,181.51,0.03]
[1755860647336,9.99621814,181.52,181.51,0.03]
[1755860647541,14.91111334,181.52,181.51,0.03]
[1755860647744,3.68470031,181.52,181.51,0.71]
[1755860648539,3.74470031,181.53,181.51,0.71]
[1755860648841,0.06,181.53,181.52,4.9148952]
[1755860649023,0.06,181.53,181.52,11.10393001]
[1755860649827,0.06,181.54,181.53,14.02207872]
[1755860650025,0.06,181.55,181.54,0.14216157]
[1755860650345,0.06,181.59,181.57,39.73775558]
[1755860650657,0.06,181.63,181.59,0.28432314]
[1755860650861,0.06,181.63,181.62,18.79481235]
[1755860651149,0.06,181.63,181.62,24.98081389]
[1755860651523,0.06,181.63,181.62,19.47481235]
[1755860651724,4.9748952,181.63,181.59,0.68]
[1755860651952,4.9148952,181.62,181.59,0.68]
[1755860652443,4.9148952,181.62,181.6,0.68]
[1755860653134,4.9148952,181.62,181.58,0.68]
[1755860653334,10.42090003,181.62,181.58,0.68]
[1755860653545,10.42090003,181.62,181.57,4.9148952]
[1755860653839,4.9148952,181.62,181.59,0.68]
[1755860654048,5.5657241,181.63,181.56,0.68]
[1755860654049,4.9148952,181.6,181.56,0.68]
[1755860654237,4.9148952,181.59,181.56,0.68]
[1755860654737,4.9148952,181.59,181.57,0.68]
[1755860654916,4.9148952,181.59,181.54,4.9148952]
[1755860655117,4.9148952,181.59,181.55,0.68]
[1755860655324,4.9148952,181.58,181.56,0.68]
[1755860656448,42.621318,181.63,181.56,5.5948952]
[1755860656749,4.9148952,181.61,181.57,0.68]
[1755860656954,4.9148952,181.61,181.56,4.9148952]
[1755860657162,4.9148952,181.61,181.58,0.69]
[1755860657448,10.42132664,181.61,181.58,0.69]
[1755860658849,4.9148952,181.59,181.54,13.87991715]
[1755860659045,4.9148952,181.55,181.52,0.83216157]
[1755860659233,4.9148952,181.54,181.51,14.31559401]
[1755860659551,4.9148952,181.54,181.52,0.69]
[1755860660243,4.9148952,181.54,181.51,13.62559401]
[1755860660552,4.9148952,181.54,181.51,14.31559401]
[1755860661053,4.9148952,181.54,181.51,0.72]
[1755860661751,4.9148952,181.52,181.51,0.03]
[1755860662124,5.6048952,181.52,181.51,0.03]
[1755860662325,0.69,181.52,181.51,0.03]
[1755860662536,5.6048952,181.52,181.51,0.03]
[1755860663234,4.9148952,181.52,181.51,0.03]
[1755860663656,5.6048952,181.52,181.51,0.03]
[1755860663830,11.11393001,181.52,181.51,0.03]
[1755860664851,132.4,181.53,181.51,0.03]
[1755860665058,137.3148952,181.53,181.51,0.03]
[1755860665355,4.9148952,181.52,181.51,0.03]
[1755860666629,5.6048952,181.52,181.51,0.03]
[1755860666825,4.9148952,181.52,181.51,0.03]
[1755860667050,132.4,181.53,181.51,0.03]
[1755860667227,4.9148952,181.52,181.51,0.03]
[1755860670740,0.69,181.54,181.51,0.03]
[1755860670941,4.9148952,181.52,181.51,0.03]
[1755860671440,4.9148952,181.53,181.51,0.72]
[1755860671752,4.9148952,181.53,181.51,0.03]
[1755860672352,4.9148952,181.52,181.51,0.03]
[1755860674663,5.6048952,181.52,181.51,0.03]
[1755860675047,4.9148952,181.52,181.51,0.03]
[1755860676066,4.9148952,181.53,181.51,0.03]
[1755860676456,5.6048952,181.53,181.51,0.03]
[1755860677058,5.6048952,181.52,181.51,0.03]
[1755860678060,11.11393001,181.52,181.51,0.03]
[1755860678480,6.19903481,181.52,181.51,0.03]
[1755860678657,11.11393001,181.52,181.51,0.03]
[1755860679878,5.6048952,181.52,181.51,0.03]
[1755860680673,32.19821658,181.55,181.51,0.03]
[1755860680878,4.9148952,181.53,181.51,0.72]
[1755860681057,4.9148952,181.53,181.51,0.03]
[1755860681257,5.6048952,181.53,181.51,0.03]
[1755860681763,4.9148952,181.53,181.51,0.03]
[1755860681966,5.6048952,181.53,181.51,0.03]
[1755860682176,4.9148952,181.53,181.51,0.03]
[1755860682657,32.230168,181.55,181.51,0.72]
[1755860682658,26.69,181.55,181.51,0.72]
[1755860682861,4.9148952,181.53,181.51,0.72]
[1755860684471,26.69,181.55,181.51,0.72]
[1755860684671,4.9148952,181.53,181.51,0.72]
[1755860684878,4.9148952,181.53,181.51,0.03]
[1755860685774,31.50815454,181.55,181.51,0.03]
[1755860685978,5.6048952,181.53,181.51,0.03]
[1755860686377,31.50815454,181.55,181.51,0.03]
[1755860686378,4.9148952,181.52,181.51,0.03]
[1755860686566,5.6048952,181.52,181.51,0.03]
[1755860688266,0.69,181.52,181.51,0.03]
[1755860688691,5.6048952,181.52,181.51,0.03]
[1755860690370,4.9148952,181.52,181.51,0.03]
[1755860690571,4.9148952,181.53,181.51,0.03]
[1755860691372,5.6348952,181.53,181.51,0.03]
[1755860692181,4.9148952,181.53,181.51,0.03]
[1755860692492,0.72,181.52,181.51,0.03]
[1755860693088,5.6348952,181.53,181.51,0.03]
[1755860693664,0.72,181.52,181.51,0.03]
[1755860693892,5.6348952,181.52,181.51,0.03]
[1755860694992,4.9148952,181.52,181.51,0.03]
[1755860695196,5.6348952,181.52,181.51,0.03]
[1755860699299,11.14393001,181.52,181.51,0.03]
[1755860699506,6.22903481,181.52,181.51,0.03]
[1755860699799,11.14393001,181.52,181.51,0.03]
[1755860700173,9.32094817,181.52,181.51,0.03]
[1755860700374,5.6348952,181.52,181.51,0.03]
[1755860701088,11.14393001,181.52,181.51,0.03]
[1755860701287,14.8308972,181.52,181.51,0.03]
[1755860702087,11.14393001,181.52,181.51,0.03]
[1755860702677,5.6348952,181.52,181.51,0.03]
[1755860703202,9.32186239,181.52,181.51,0.03]
[1755860703408,9.73756254,181.52,181.51,0.03]
[1755860703701,13.42452973,181.52,181.51,0.03]
[1755860704076,9.73756254,181.52,181.51,0.03]
[1755860704273,13.42452973,181.52,181.51,0.03]
[1755860704477,4.82266734,181.52,181.51,0.03]
[1755860704675,13.42452973,181.52,181.51,0.03]
[1755860704972,9.73756254,181.52,181.51,0.03]
[1755860705179,13.42452973,181.52,181.51,0.03]
[1755860705378,9.73756254,181.52,181.51,0.03]
[1755860705676,13.42452973,181.52,181.51,0.03]
[1755860706184,12.70452973,181.52,181.51,0.03]
[1755860706797,9.01756254,181.52,181.51,0.03]
[1755860706998,12.70800567,181.52,181.51,0.03]
[1755860707506,13.42800567,181.52,181.51,0.03]
[1755860707714,9.74103848,181.52,181.51,0.03]
[1755860707897,13.42800567,181.52,181.51,0.03]
[1755860708208,9.02103848,181.52,181.51,0.03]
[1755860708514,8.60186239,181.52,181.51,0.03]
[1755860709388,5.6348952,181.52,181.51,0.03]
[1755860709593,9.32186239,181.52,181.51,0.03]
[1755860709809,5.6348952,181.52,181.51,0.03]
[1755860709991,9.32186239,181.52,181.51,0.03]
[1755860710190,13.42805503,181.52,181.51,0.03]
[1755860710707,44.93708984,181.52,181.51,0.03]
[1755860711015,47.14648484,181.52,181.51,0.03]
[1755860713180,41.63745003,181.52,181.51,0.03]
[1755860714016,47.14648484,181.52,181.51,0.03]
[1755860714511,47.14143373,181.52,181.51,0.03]
[1755860715392,41.50653853,181.52,181.51,0.03]
[1755860715591,46.42143373,181.52,181.51,0.03]
[1755860715793,47.14143373,181.52,181.51,0.03]
[1755860716410,47.14109116,181.52,181.51,0.03]
[1755860717712,46.42109116,181.52,181.51,0.03]
[1755860718710,31.89636219,181.52,181.51,0.75]
[1755860719015,4.9148952,181.56,181.51,5.6648952]
[1755860719322,3.69220055,181.55,181.51,0.03]
[1755860719512,3.69220055,181.54,181.52,0.72]
[1755860722695,8.61929502,181.55,181.52,0.72]
[1755860722989,3.69220055,181.54,181.52,0.72]
[1755860723421,3.69220055,181.54,181.51,0.03]
[1755860723624,3.69220055,181.54,181.53,0.72]
[1755860724002,3.69220055,181.54,181.53,5.64709447]
[1755860724192,3.69220055,181.55,181.53,5.64709447]
[1755860724397,3.69220055,181.54,181.53,4.92709447]
[1755860724615,3.69220055,181.55,181.53,4.92709447]
[1755860724823,3.69220055,181.54,181.53,4.92709447]
[1755860725026,3.69220055,181.55,181.53,0.72]
[1755860725336,3.69220055,181.54,181.52,10.43599126]
[1755860725502,3.69220055,181.55,181.51,16.00565122]
[1755860725701,3.69220055,181.54,181.51,16.00565122]
[1755860725916,3.69220055,181.55,181.52,0.72]
[1755860726217,3.69220055,181.54,181.53,0.72]
[1755860726419,3.69220055,181.55,181.54,0.72]
[1755860726625,7.79239962,181.55,181.54,0.72]
[1755860727713,7.79239962,181.55,181.52,11.15608325]
[1755860727907,3.69220055,181.54,181.52,10.43608325]
[1755860728218,3.69220055,181.55,181.53,0.72]
[1755860728417,3.69220055,181.54,181.53,0.72]
[1755860728616,4.92709447,181.54,181.51,0.03]
[1755860728813,9.33929502,181.54,181.51,0.75]
[1755860729012,8.61929502,181.55,181.51,6.25932078]
[1755860729214,3.69220055,181.54,181.51,6.25932078]
[1755860729731,3.69220055,181.54,181.52,0.72]
[1755860729908,3.69220055,181.55,181.52,0.72]
[1755860730111,3.69220055,181.54,181.52,0.72]
[1755860730315,3.69220055,181.55,181.52,0.72]
[1755860730516,137.32709447,181.56,181.53,0.72]
[1755860730517,3.69220055,181.54,181.53,0.72]
[1755860730713,3.69220055,181.55,181.53,0.72]
[1755860730936,3.69220055,181.55,181.54,4.92709447]
[1755860731109,132.4,181.56,181.54,5.64709447]
[1755860731307,132.4,181.56,181.55,0.72]
[1755860732829,132.4,181.56,181.53,5.53932]
[1755860733011,0.72,181.55,181.51,0.75]
[1755860733230,5.64709447,181.54,181.51,0.03]
[1755860733536,0.72,181.54,181.51,0.75]
[1755860733735,9.33475225,181.55,181.51,0.75]
[1755860734034,8.61475225,181.55,181.51,0.75]
[1755860734243,0.72,181.54,181.51,0.03]
[1755860734608,4.92709447,181.55,181.51,0.03]
[1755860734840,138.04709447,181.56,181.52,0.72]
[1755860735422,4.92709447,181.55,181.52,0.72]
[1755860735822,132.4,181.54,181.51,5.53907058]
[1755860736018,132.4,181.54,181.51,0.03]
[1755860736337,0.72,181.53,181.51,0.03]
[1755860736629,4.92709447,181.52,181.51,0.03]
[1755860737021,5.64709447,181.52,181.51,0.03]
[1755860737434,137.32709447,181.54,181.51,0.03]
[1755860737607,132.4,181.54,181.51,0.75]
[1755860737815,132.4,181.54,181.51,0.03]
[1755860738122,132.4,181.54,181.52,0.72]
[1755860738434,137.32709447,181.54,181.51,0.03]
[1755860738611,0.72,181.53,181.51,0.03]
[1755860740032,0.72,181.52,181.51,0.03]
[1755860740733,5.64709447,181.52,181.51,0.03]
[1755860741330,10.82196095,181.53,181.51,0.03]
[1755860741533,8.61293195,181.53,181.51,0.03]
[1755860741840,132.4,181.52,181.51,0.03]
[1755860743725,14.84175103,181.52,181.51,0.03]
[1755860744111,11.15612928,181.52,181.51,0.03]
[1755860744427,15.25076059,181.52,181.51,0.03]
[1755860744626,18.93638234,181.52,181.51,0.03]
[1755860744844,21.14577834,181.52,181.51,0.03]
[1755860745745,21.28793991,181.52,181.51,0.03]
[1755860746920,17.1933086,181.52,181.51,0.03]
[1755860747247,21.28701601,181.52,181.51,0.03]
[1755860747437,31.06925604,181.5,181.49,0.03]
[1755860747741,38.84756013,181.5,181.49,0.03]
[1755860747941,39.52756013,181.5,181.49,0.03]
[1755860749321,14.02207872,181.49,181.48,0.03]
[1755860749520,27.40747728,181.49,181.48,0.03]
[1755860749936,27.40747728,181.49,181.47,0.03]
[1755860750243,141.69271622,181.48,181.47,0.03]
[1755860751642,147.20296528,181.48,181.47,0.03]
[1755860751849,14.80296528,181.48,181.47,0.03]
[1755860753860,10.01803238,181.48,181.47,0.03]
[1755860754023,10.5795051,181.48,181.47,0.03]
[1755860754230,11.2595051,181.48,181.47,0.03]
[1755860754537,13.4697551,181.48,181.47,0.03]
[1755860756539,12.64759353,181.48,181.47,0.03]
[1755860757035,13.32759353,181.48,181.47,0.03]
[1755860757940,13.4697551,181.48,181.47,0.03]
[1755860759050,12.7897551,181.48,181.47,0.03]
[1755860759449,7.72049906,181.48,181.47,0.03]
[1755860759640,38.64759353,181.48,181.47,0.03]
[1755860760547,28.21025,181.48,181.47,0.73]
[1755860760754,26.0,181.48,181.47,5.65709447]
[1755860761142,26.0,181.48,181.47,0.73]
[1755860762260,26.0,181.48,181.47,0.03]
[1755860762560,7.750541,181.51,181.47,5.65709447]
[1755860762734,10.43644207,181.51,181.48,0.7]
[1755860763059,10.43644207,181.51,181.47,0.03]
[1755860763360,10.43644207,181.51,181.48,0.7]
[1755860763664,4.92709447,181.5,181.48,0.7]
[1755860765556,132.4,181.49,181.47,0.03]
[1755860765946,138.00709447,181.49,181.47,0.03]
[1755860766145,4.92709447,181.48,181.47,0.03]
[1755860766344,5.60709447,181.48,181.47,0.03]
[1755860766560,7.81697747,181.48,181.47,0.03]
[1755860766734,13.32722653,181.48,181.47,0.03]
[1755860769167,12.64722653,181.48,181.47,0.03]
[1755860769549,13.32722653,181.48,181.47,0.03]
[1755860770768,12.64722653,181.48,181.47,0.03]
[1755860771645,13.32722653,181.48,181.47,0.03]
[1755860772471,13.4693881,181.48,181.47,0.03]
[1755860774160,31.02695426,181.48,181.47,1e-08]
[1755860774874,27.34930525,181.48,181.47,1e-08]
[1755860775365,31.02694209,181.48,181.47,1e-08]
[1755860776277,132.36999999,181.46,181.45,0.03]
[1755860776464,31.06925604,181.46,181.45,0.03]
[1755860776646,31.74925604,181.46,181.45,0.03]
[1755860777946,37.26011242,181.46,181.45,0.03]
[1755860778689,14.02207872,181.45,181.44,0.03]
[1755860778971,24.55626766,181.45,181.44,0.03]
[1755860780046,25.14033328,181.45,181.44,0.03]
[1755860780875,30.06742775,181.45,181.43,1e-08]
[1755860781075,0.82216157,181.44,181.43,1e-08]
[1755860781259,10.67635051,181.44,181.43,1e-08]
[1755860781459,143.07635051,181.44,181.43,1e-08]
[1755860781859,156.95626766,181.44,181.42,0.03]
[1755860782058,25.14094081,181.43,181.42,0.03]
[1755860782960,29.65095255,181.43,181.42,0.03]
[1755860784357,25.14094081,181.43,181.42,0.03]
[1755860784874,10.58102366,181.43,181.42,0.03]
[1755860785080,11.26102366,181.43,181.42,0.03]
[1755860785461,10.58102366,181.43,181.42,0.03]
[1755860785855,12.79188466,181.43,181.42,0.03]
[1755860786049,12.64972309,181.43,181.42,0.72]
[1755860787961,12.64972309,181.43,181.42,0.03]
[1755860788161,13.32972309,181.43,181.42,0.03]
[1755860788392,7.72262862,181.43,181.42,0.72]
[1755860788593,5.51024906,181.48,181.42,5.64709447]
[1755860788763,3.68681473,181.47,181.43,0.69]
[1755860788957,3.68681473,181.46,181.42,4.95709447]
[1755860789158,3.68681473,181.46,181.44,0.69]
[1755860789354,35.19797482,181.45,181.44,0.69]
[1755860789565,29.68681473,181.45,181.44,0.69]
[1755860789992,15.97967392,181.49,181.44,5.61709447]
[1755860790190,15.97967392,181.49,181.45,0.69]
[1755860790191,136.08758601,181.48,181.45,0.69]
[1755860790488,3.68758601,181.47,181.46,0.69]
[1755860791393,9.19813871,181.47,181.46,0.69]
[1755860791973,14.12523318,181.47,181.43,0.69]
[1755860792177,3.68758601,181.46,181.44,0.69]
[1755860792385,3.68758601,181.45,181.44,0.69]
[1755860792759,132.4,181.48,181.44,4.92709447]
[1755860792760,3.68758601,181.46,181.44,4.92709447]
[1755860792963,132.4,181.48,181.45,4.92709447]
[1755860793178,132.4,181.48,181.46,4.92709447]
[1755860793368,0.06,181.52,181.47,5.61709447]
[1755860793673,3.74869229,181.52,181.5,4.92709447]
[1755860793877,0.06,181.52,181.51,0.69]
[1755860794186,3.7487159,181.52,181.51,0.69]
[1755860795567,3.7487159,181.52,181.49,0.69]
[1755860795779,8.61581037,181.51,181.47,0.69]
[1755860795992,8.61581037,181.51,181.44,0.28432314]
[1755860795993,8.61581037,181.5,181.48,0.69]
[1755860796292,3.6887159,181.51,181.49,0.69]
[1755860796466,3.6887159,181.5,181.49,0.69]
[1755860797300,3.6887159,181.51,181.49,0.69]
[1755860797480,0.06,181.52,181.5,4.92709447]
[1755860797800,0.06,181.52,181.51,5.61709447]
[1755860800193,0.06,181.52,181.49,5.61709447]
[1755860800376,0.06,181.52,181.5,0.69]
[1755860800793,4.98709447,181.52,181.5,0.69]
[1755860800994,4.98709447,181.52,181.48,0.69]
[1755860801305,4.98709447,181.52,181.49,0.69]
[1755860801677,4.98709447,181.52,181.5,0.69]
[1755860801885,4.98709447,181.52,181.48,0.69]
[1755860802202,4.98709447,181.52,181.49,0.69]
[1755860802382,4.92709447,181.51,181.47,5.61709447]
[1755860802582,4.92709447,181.51,181.45,4.92709447]
[1755860802583,4.92709447,181.49,181.45,4.92709447]
[1755860802793,9.24851175,181.52,181.43,11.12879717]
[1755860802794,4.92709447,181.48,181.43,11.12879717]
[1755860802979,4.92709447,181.47,181.45,0.69]
[1755860803298,26.68,181.49,181.43,5.617095]
[1755860803299,4.92709447,181.46,181.43,0.69]
[1755860803492,4.92709447,181.45,181.43,0.69]
[1755860803888,4.92709447,181.44,181.43,0.69]
[1755860804196,4.92709447,181.44,181.42,0.03]
[1755860804498,4.92709447,181.43,181.42,0.03]
[1755860804886,5.60709447,181.43,181.42,0.03]
[1755860805275,4.92709447,181.43,181.42,0.03]
[1755860806099,13.77597487,181.48,181.42,0.72]
[1755860806100,31.51024906,181.48,181.42,0.72]
[1755860806301,26.68,181.48,181.42,0.72]
[1755860806602,4.92709447,181.46,181.42,0.72]
[1755860806788,4.92709447,181.45,181.42,0.03]
[1755860807300,5.64709447,181.45,181.42,0.03]
[1755860807495,4.92709447,181.43,181.42,0.03]
[1755860808000,0.72,181.45,181.42,0.03]
[1755860808301,4.92709447,181.43,181.42,0.03]
[1755860809711,5.51162455,181.44,181.42,0.03]
[1755860809892,4.92709447,181.43,181.42,0.03]
[1755860811896,10.43886209,181.43,181.42,0.03]
[1755860812106,6.23176762,181.43,181.42,0.03]
[1755860812407,11.15886209,181.43,181.42,0.03]
[1755860814892,11.15886209,181.43,181.4,0.03]
[1755860814893,26.0,181.41,181.4,0.03]
[1755860815095,30.92709447,181.41,181.4,0.03]
[1755860815297,37.15946975,181.41,181.4,0.03]
[1755860815488,39.37069675,181.41,181.4,0.03]
[1755860817415,39.37069675,181.41,181.39,0.03]
[1755860817709,31.64709447,181.4,181.39,0.03]
[1755860818113,26.0,181.4,181.39,0.03]
[1755860818296,31.64709447,181.4,181.39,0.03]
[1755860819380,37.15977363,181.4,181.39,0.03]
[1755860820012,32.23267916,181.4,181.39,0.03]
[1755860820395,37.15977363,181.4,181.39,0.03]
[1755860820621,37.15977363,181.4,181.38,0.03]
[1755860820798,13.59559401,181.35,181.23,0.1]
[1755860821002,30.92709447,181.33,181.29,0.71]
[1755860821185,34.59922365,181.33,181.29,0.71]
[1755860821385,35.18693643,181.33,181.29,0.71]
[1755860821695,40.8340309,181.33,181.27,0.71]
[1755860821917,48.99006511,181.33,181.27,0.71]
[1755860822222,49.83422424,181.33,181.27,0.71]
[1755860822397,40.83403143,181.33,181.28,0.71]
[1755860822595,45.7611259,181.33,181.28,0.71]
[1755860822806,45.7611259,181.33,181.26,0.85216157]
[1755860823487,59.54814404,181.33,181.26,0.85216157]
[1755860823823,59.54814404,181.33,181.23,0.81]
[1755860823824,4.92709447,181.27,181.23,0.81]
[1755860823989,26.0,181.29,181.23,0.81]
[1755860823990,4.92709447,181.24,181.23,0.1]
[1755860824402,30.92709447,181.24,181.23,0.1]
[1755860824602,31.64709447,181.24,181.23,0.1]
[1755860824804,36.57418947,181.24,181.23,0.1]
[1755860825020,4.927095,181.24,181.23,0.81]
[1755860825812,4.92709447,181.25,181.23,0.81]
[1755860826013,134.612573,181.28,181.23,6.32776543]
[1755860826217,4.92709447,181.26,181.24,0.28432314]
[1755860826390,132.4,181.28,181.24,0.28432314]
[1755860826391,4.92709447,181.25,181.24,0.28432314]
[1755860826700,137.32709447,181.28,181.25,0.71]
[1755860826905,133.12,181.28,181.24,0.28432314]
[1755860827120,132.4,181.28,181.25,0.71]
[1755860827328,137.32709447,181.28,181.26,0.71]
[1755860827845,4.92709447,181.27,181.24,0.28432314]
[1755860827991,4.92709447,181.25,181.24,0.28432314]
[1755860828199,4.92709447,181.25,181.23,0.1]
[1755860828496,8.05724908,181.24,181.23,0.1]
[1755860828692,133.12,181.28,181.23,0.1]
[1755860828916,138.63656176,181.28,181.23,0.81]
[1755860829102,138.63656176,181.28,181.23,0.1]
[1755860829103,8.05724908,181.24,181.23,0.1]
[1755860830203,14.29479487,181.24,181.23,0.1]
[1755860830529,34.77724908,181.24,181.23,0.1]
[1755860830830,34.05724908,181.24,181.23,0.81]
[1755860831001,8.05724908,181.24,181.23,0.1]
[1755860831404,8.05724908,181.25,181.23,0.81]
[1755860831605,26.0,181.26,181.23,0.81]
[1755860831815,26.0,181.26,181.24,0.71]
[1755860832020,8.05724908,181.25,181.23,0.1]
[1755860832222,8.05724908,181.25,181.23,0.81]
[1755860832421,8.05724908,181.24,181.23,0.1]
[1755860833511,2.212573,181.29,181.24,0.28432314]
[1755860833719,10.26982208,181.29,181.26,0.28432314]
[1755860834123,8.05724908,181.28,181.26,0.28432314]
[1755860834352,132.4,181.28,181.26,0.99432314]
[1755860834635,133.12,181.39,181.28,0.42648471]
[1755860834941,13.65559401,181.4,181.33,8.34157222]
[1755860834942,13.67507908,181.38,181.33,8.34157222]
[1755860835133,5.61783,181.38,181.35,0.28432314]
[1755860835445,5.61783,181.38,181.37,0.28432314]
[1755860835730,0.06,181.4,181.37,14.70732479]
[1755860836030,0.06,181.4,181.39,8.48373379]
[1755860836542,0.06,181.42,181.41,0.42648471]
[1755860836843,0.06,181.42,181.41,8.48373379]
[1755860837007,0.06,181.42,181.41,22.7593278]
[1755860837201,0.06,181.42,181.41,14.70207872]
[1755860837400,0.06,181.42,181.41,9.16373379]
[1755860837707,0.06,181.42,181.41,1.10648471]
[1755860838627,0.06,181.42,181.41,0.42648471]
[1755860839314,8.11724908,181.42,181.41,0.28432314]
[1755860839522,8.79724908,181.42,181.37,0.68]
[1755860839737,8.05724908,181.38,181.36,0.14216157]
[1755860839901,0.68,181.41,181.36,0.14216157]
[1755860840100,8.05724908,181.37,181.36,0.14216157]
[1755860840332,8.05724908,181.38,181.36,0.96432314]
[1755860840504,0.06,181.42,181.37,0.96432314]
[1755860840505,8.05724908,181.39,181.37,0.96432314]
[1755860840706,8.05724908,181.38,181.37,0.14216157]
[1755860840940,8.05724908,181.38,181.34,0.68]
[1755860841106,8.05724908,181.37,181.34,0.68]
[1755860841305,8.05724908,181.35,181.31,0.68]
[1755860841533,8.05724908,181.35,181.32,0.68]
[1755860841737,8.05724908,181.35,181.33,0.14216157]
[1755860841907,8.05724908,181.35,181.32,0.68]
[1755860842232,8.05724908,181.34,181.32,0.68]
[1755860842411,8.05724908,181.34,181.33,0.14216157]
[1755860844231,8.05724908,181.34,181.31,0.28432314]
[1755860844433,8.05724908,181.33,181.31,0.42648471]
[1755860844638,8.05724908,181.32,181.3,0.68]
[1755860844942,8.05724908,181.32,181.27,13.57362907]
[1755860844943,8.05724908,181.31,181.29,0.14216157]
[1755860845412,8.05724908,181.3,181.26,6.19689413]
[1755860845616,8.05724908,181.3,181.27,1.10648471]
[1755860845807,8.05724908,181.3,181.27,0.82216157]
[1755860846006,0.68,181.32,181.29,0.03]
[1755860846234,8.05724908,181.3,181.29,0.03]
[1755860846607,14.25296888,181.3,181.29,0.03]
[1755860848427,8.05724908,181.3,181.29,0.03]
[1755860848635,8.73724908,181.3,181.29,0.03]
[1755860850035,26.0,181.32,181.29,0.03]
[1755860850213,8.05724908,181.3,181.29,0.03]
[1755860852139,8.05724908,181.32,181.3,0.14216157]
[1755860852311,8.05724908,181.34,181.31,0.68]
[1755860852931,8.05724908,181.33,181.31,0.68]
[1755860853132,31.51366145,181.37,181.3,0.42648471]
[1755860853133,8.05724908,181.32,181.3,0.42648471]
[1755860853329,8.05724908,181.32,181.3,5.94212247]
[1755860853530,8.05724908,181.32,181.3,6.62212247]
[1755860853743,8.05724908,181.33,181.31,0.68]
[1755860854037,8.05724908,181.33,181.3,5.94212247]
[1755860854232,8.05724908,181.33,181.3,0.42648471]
[1755860854426,8.05724908,181.31,181.29,0.03]
[1755860854635,8.05724908,181.3,181.29,0.03]
[1755860855132,8.05724908,181.32,181.29,0.03]
[1755860855841,8.05724908,181.3,181.29,0.03]
[1755860856838,8.05724908,181.31,181.29,0.03]